Cogmind - Beta 13 @@@ ROGUE MODE // 2024.06.29 @ 18:16:48 Player: Jahimaih Green Turtle Result: Destroyed by Y-54 Guardian with Flak Gun Performance ------------- Evolutions (4) 2000 Regions Visited (7) 1400 Robots Destroyed (89) 445 Value Destroyed (3273) 3273 Prototype IDs (0) 0 Alien Tech Used (0) 0 Bonus (49) 49 TOTAL SCORE: 7167 Bonus ------- Follower Combat Kills 49 Cogmind --------- Core Integrity 0/850 Matter 297/300 Energy 100/100 System Corruption 14% Temperature Cool (18) Movement Rolling (130) Ox2 Location -6/Factory Parts ------- > --- POWER (1) -------- (None) > --- PROPULSION (5) --- Carbon-fiber Leg Armored Leg Compact Wheel > --- UTILITY (7) ------ High-capacity Storage Unit Improved Melee Analysis Suite Improved Melee Analysis Suite Improved Melee Analysis Suite Advanced Melee Analysis Suite Target Analyzer Hacking Suite > --- WEAPON (2) ------- Mini Grenade Launcher Power Maul > --- INVENTORY (20) --- Microactuators Transmission Jammer Improved Light Armor Plating Medium Reactive Plating Improved Hacking Suite Improved System Shield Mini Grenade Launcher Remote Datajack Peak State ------------ > --- POWER ------------ Improved Deuterium Engine > --- PROPULSION ------- Improved Aluminum Leg Carbon-fiber Leg Carbon-fiber Leg Improved Titanium Leg Flexi-carbon Leg > --- UTILITY ---------- High-capacity Storage Unit Advanced Sensor Array Improved Targeting Computer Target Analyzer Core Analyzer Improved Heavy Armor Plating > --- WEAPON ----------- Magnetic Acceleration Cannon Katana > --- INVENTORY -------- Micro Nuclear Core Antimatter Reactor Aluminum Leg Improved Aluminum Leg Improved Aluminum Leg Improved Heat Sink Targeting Computer Improved Melee Analysis Suite Improved Melee Analysis Suite Improved Melee Analysis Suite Kinecellerator Microactuators Transmission Jammer Hardened Medium Armor Plating Hardened Medium Armor Plating Hacking Suite Gauss Rifle Mini Grenade Launcher Mini Grenade Launcher Remote Datajack [Rating: 60] Favorites ----------- Power Improved Deuterium Engine Engine Improved Deuterium Engine Power Core Micro Nuclear Core Reactor Antimatter Reactor Propulsion Carbon-fiber Leg Leg Carbon-fiber Leg Wheel Armored Wheel Hover Unit Improved Hover Unit Utility Improved Light Armor Plating Device Advanced Sensor Array Storage High-capacity Storage Unit Processor Improved Targeting Computer Hackware Hacking Suite Protection Improved Light Armor Plating Weapon Gauss Rifle Energy Gun EM Pulse Gun Ballistic Gun Gauss Rifle Ballistic Cannon Heavy Assault Cannon Launcher Mini Grenade Launcher Special Weapon Remote Datajack Impact Weapon Power Maul Slashing Weapon Katana Special Melee Weapon Datajack Build | -11 -10 -9 -8 -7 -6 -6 -6 ------- Run | Yrd Mat Mat Mat Fac Fac Was Fac Slots Evolved 8 | . . 2 2 2 2 . . Power . | . . . . . . . . Propulsion 3 | . . 1 1 1 . . . Utility 5 | . . 1 1 1 2 . . Weapon . | . . . . . . . . Parts Attached 118 | 6 16 12 6 21 9 1 47 Power 12 | 1 1 1 1 3 . . 5 Engine 7 | 1 1 1 1 2 . . 1 Core 3 | . . . . 1 . . 2 Reactor 2 | . . . . . . . 2 Propulsion 46 | 2 5 6 1 9 3 . 20 Treads . | . . . . . . . . Leg 30 | 2 4 . . 8 3 . 13 Wheel 13 | . 1 3 1 1 . . 7 Hover 3 | . . 3 . . . . . Flight . | . . . . . . . . Utility 33 | 1 3 3 2 6 4 . 14 Device 2 | . . . . . 1 . 1 Storage 4 | 1 2 . . 1 . . . Processor 10 | . 1 1 . . 2 . 6 Hackware 2 | . . . . . . . 2 Protection 15 | . . 2 2 5 1 . 5 Artifact . | . . . . . . . . Weapon 27 | 2 7 2 2 3 2 1 8 Energy Gun 5 | 2 3 . . . . . . Energy Cannon . | . . . . . . . . Ballistic Gun 11 | . 2 1 1 2 1 . 4 Ballistic Cannon 2 | . . . 1 . . . 1 Launcher 3 | . 1 . . . . . 2 Special Weapon 2 | . . . . . 1 1 . Impact Weapon 2 | . 1 . . . . . 1 Slashing Weapon 1 | . . . . 1 . . . Piercing Weapon . | . . . . . . . . Special Melee Weapon 1 | . . 1 . . . . . Unidentified Prototypes . | . . . . . . . . Parts Lost 44 | . 4 . . 2 2 . 36 Power 7 | . 1 . . 1 . . 5 Propulsion 22 | . 2 . . 1 2 . 17 Utility 10 | . . . . . . . 10 Weapon 5 | . 1 . . . . . 4 Highest Loss Streak 13 | . 2 . . 1 1 . 13 To Critical Strikes . | . . . . . . . . Average Slot Usage (%) 91 | . 97 97 89 97 94 93 85 Engine 6 | . 13 11 9 4 6 6 2 Leg 20 | . 24 2 . 23 32 33 20 Wheel 8 | . 1 11 36 14 . . 4 Hover 1 | . . 16 . . . . . Device 2 | . . . . . 5 6 3 Storage 7 | . 14 11 9 7 6 6 6 Processor 16 | . 13 11 9 7 19 20 22 Hackware 1 | . . . . . . . 4 Protection 8 | . . 10 17 22 8 6 3 Energy Gun 2 | . 15 . . . . . . Ballistic Gun 5 | . 2 14 . 5 6 . 5 Ballistic Cannon 1 | . . . 8 1 . . . Impact Weapon 2 | . 9 . . . . . 2 Slashing Weapon 2 | . . . . 5 6 6 1 Naked Turns . | . . . . . . . . Heaviest Build 77 | 13 27 23 30 70 72 72 77 Greatest Support 85 | 20 20 36 48 78 85 81 83 Greatest Overweight (x) 6 | . 1 6 . 1 1 . 4 Average Overweight (x) . | . . . . . . . . Largest Inventory Capacity 20 | 8 15 8 8 20 20 20 20 Average Capacity 15 | 7 8 8 8 15 20 20 20 Most Carried 20 | 5 8 8 8 20 20 19 20 Average Carried 12 | 3 6 7 7 12 18 18 12 Final Capacity 20 | 8 8 8 8 20 20 20 20 Final Carried 19 | 4 8 8 8 19 18 19 8 Class Distribution -------------------- 56% | Mutant 43% | Scavenger-Mutant Dominant Class ---------------- Mutant | -10/Materials Mutant | -9/Materials Mutant | -8/Materials Mutant | -7/Factory Scavenger-Mutant | -6/Factory Scavenger-Mutant | -6/Waste Scavenger-Mutant | -6/Factory Resources | -11 -10 -9 -8 -7 -6 -6 -6 ----------- Run | Yrd Mat Mat Mat Fac Fac Was Fac Matter Collected 2221 | 214 212 193 266 364 97 46 829 Remotely . | . . . . . . . . Salvage Created 3516 | . 431 416 280 512 140 . 1737 Parts 160 | . 18 28 11 40 12 . 51 Haulers Intercepted 5 | . 1 2 1 . . . 1 Recyclers Shooed 2 | . . . . . . . 2 Parts Field Recycled . | . . . . . . . . Retrieved Matter . | . . . . . . . . Parts Self-Destructed . | . . . . . . . . Prevented . | . . . . . . . . Kills | -11 -10 -9 -8 -7 -6 -6 -6 ------- Run | Yrd Mat Mat Mat Fac Fac Was Fac Combat Hostiles Destroyed 63 | . 12 7 7 11 2 . 24 Melee 19 | . 4 . . 8 1 . 6 Guns 17 | . 3 7 . 1 1 . 5 Cannons 13 | . . . 7 2 . . 4 AOE 4 | . 3 . . . . . 1 Classes Destroyed 14 | . 6 1 1 1 . . 5 Worker 3 | . . . . . . . 3 Builder 6 | . 1 . . 1 2 . 2 Hauler 5 | . 1 2 1 . . . 1 Recycler 3 | . . . . . . . 3 Mechanic 1 | . . . . . . . 1 Operator 3 | . 2 1 . . . . . Watcher 5 | . 2 . . . 1 . 2 Swarmer 6 | . 6 . . . . . . Grunt 26 | . 6 4 3 3 . . 10 Duelist 1 | . . . . . . . 1 Sentry 15 | . . 3 3 4 1 . 4 Specialist 2 | . . . . . . . 2 Hunter 5 | . . . 1 1 . . 3 Programmer 8 | . . . . 3 1 . 4 Best Kill Streak 8 | . 6 2 5 3 3 . 8 Combat Bots Only 5 | . 4 2 5 3 1 . 5 Max Kills in Single Turn 3 | . 3 1 1 1 3 . 3 Gunslinging 1 | . . . . . . . 1 Exploded 2 | . 2 . . . . . 1 Melee 1 | . 1 . . 1 1 . 1 Uniques/NPCs Destroyed . | . . . . . . . . Combat | -11 -10 -9 -8 -7 -6 -6 -6 -------- Run | Yrd Mat Mat Mat Fac Fac Was Fac Hostile Shots Fired 834 | . 59 19 33 186 66 . 471 Missed 263 | . 15 4 10 58 27 . 149 Damage Taken 7616 | . 525 185 380 1198 537 . 4791 Core 1125 | . 68 35 45 123 17 . 837 Absorbed by Shields . | . . . . . . . . Regen/Repaired (Parts) 212 | . 42 . . . . . 170 Core Remaining (%) 87 | 100 72 91 91 82 . . . Volleys Fired 167 | . 24 24 23 21 9 . 66 Largest 2 | . 1 1 1 1 1 . 2 Hottest 60 | . 40 23 60 60 28 . 56 Shots Fired 182 | . 24 24 23 21 9 . 81 Gun 98 | . 21 24 . 4 8 . 41 Cannon 79 | . . . 23 17 . . 39 Launcher 4 | . 3 . . . . . 1 Special 1 | . . . . . 1 . . Kinetic 156 | . . 24 23 21 8 . 80 Thermal 1 | . 1 . . . . . . Explosive 4 | . 3 . . . . . 1 Electromagnetic 20 | . 20 . . . . . . Robot Hit Streak 20 | . 7 20 12 10 3 . 9 Robot Miss Streak 4 | . 3 2 1 1 2 . 4 Penetration Max 1 | . . . . 1 . . 1 Secondary Targets 1 | . . . . . . . 1 Max Gunslinging Chain 1 | . . . . . . . 1 Shots Hit Robots 230 | . 30 31 21 36 12 . 100 Core Hits 105 | . 12 21 8 23 8 . 33 Critical Kills 2 | . . . . . . . 2 Critical Parts Destroyed 19 | . 3 . . . . . 16 Critical Strikes 29 | . 3 . 2 1 2 . 21 Destroy 3 | . . . . . . . 3 Blast 6 | . . . 2 1 . . 3 Smash 18 | . 3 . . . . . 15 Sever 2 | . . . . . 2 . . Melee Attacks 171 | . 21 8 . 24 40 1 77 Impact 86 | . 21 . . . . . 65 Slashing 77 | . . . . 24 40 1 12 Piercing . | . . . . . . . . Sneak Attacks 16 | . 4 6 . . . . 6 Combat Hostiles . | . . . . . . . . Follow-up Attacks . | . . . . . . . . Damage Inflicted 9557 | . 1054 467 1046 1436 500 . 5054 Guns 1609 | . 190 467 . 83 76 . 793 Cannons 2508 | . . . 1046 740 . . 722 Explosions 1579 | . 374 . . . 188 . 1017 Melee 3861 | . 490 . . 613 236 . 2522 Ramming . | . . . . . . . . Kinetic 3927 | . . 467 1046 823 76 . 1515 Thermal 1066 | . 69 . . . . . 997 Explosive 513 | . 305 . . . 188 . 20 Electromagnetic 190 | . 190 . . . . . . Impact 2950 | . 490 . . . . . 2460 Slashing 911 | . . . . 613 236 . 62 Piercing . | . . . . . . . . Highest Corruption 14 | . 5 . . . 1 1 14 Average Corruption 5 | . 4 . . . 1 1 7 Corruption Purged . | . . . . . . . . Corruption Blocked . | . . . . . . . . Effects 67 | . . . . . 7 3 57 Message Errors 15 | . . . . . 1 1 13 Matter Fused 16 | . . . . . 2 . 14 Heat Flow Errors 8 | . . . . . . 2 6 Energy Discharges 10 | . . . . . 2 . 8 Parts Rejected 1 | . . . . . . . 1 Parts Fused 1 | . . . . . . . 1 Data Loss (minor) 7 | . . . . . 1 . 6 Data Loss (major) 5 | . . . . . 1 . 4 Alerts 1 | . . . . . . . 1 Misdirections 2 | . . . . . . . 2 Weapon Failures 1 | . . . . . . . 1 Overload Shots . | . . . . . . . . Overflow Damage 1423 | . 164 . 31 39 13 . 1176 Projectiles 91 | . . . 31 39 . . 21 Explosions 83 | . 19 . . . 13 . 51 Melee 1249 | . 145 . . . . . 1104 Knockbacks 29 | . 1 . 2 3 . . 23 Impact 11 | . 1 . . . . . 10 Kinetic 16 | . . . 2 3 . . 11 Secondary 2 | . . . . . . . 2 Self-Inflicted Damage 544 | . 82 . . . 89 . 373 Shots 9 | . 3 . . . 1 . 5 Rammed . | . . . . . . . . Targets Rammed . | . . . . . . . . Kicked . | . . . . . . . . Crushed . | . . . . . . . . Highest Temperature 267 | . 42 5 75 252 . 267 254 Average Temperature 73 | . 22 2 32 133 . 128 70 Received Heat Transfer 1176 | . 108 78 63 333 69 . 525 Siege Activations . | . . . . . . . . Robots Corrupted 2 | . 2 . . . . . . Combat Hostiles 2 | . 2 . . . . . . Parts Fried 25 | . 9 . . . . . 16 Impact Corruptions 42 | . 9 . . . . . 33 Robots Melted . | . . . . . . . . Combat Hostiles . | . . . . . . . . Parts Melted . | . . . . . . . . Heat Transferred 900 | . 100 . . . . . 800 Parts Sabotaged . | . . . . . . . . Parts Stolen . | . . . . . . . . Parts Stripped . | . . . . . . . . Power Chain Reactions 2 | . 2 . . . . . . Alert | -11 -10 -9 -8 -7 -6 -6 -6 ------- Run | Yrd Mat Mat Mat Fac Fac Was Fac Peak Influence 314 | . 206 283 291 220 144 7 314 Initial 43 | . . 9 . . 43 7 4 Average 84 | . 67 114 121 71 75 7 98 Maximum Alert Level 1 | . 1 1 1 1 . . 1 Low Security (%) 86 | 100 88 75 67 95 100 100 81 Level 1 13 | . 11 24 32 4 . . 18 Level 2 . | . . . . . . . . Level 3 . | . . . . . . . . Level 4 . | . . . . . . . . Level 5 . | . . . . . . . . High Security . | . . . . . . . . Max Security . | . . . . . . . . Squads Dispatched 17 | . 2 1 2 3 2 . 7 Investigation 2 | . . . . 1 . . 1 Extermination 6 | . . . . 2 1 . 3 Reinforcement 9 | . 2 1 2 . 1 . 3 Assault . | . . . . . . . . Garrison . | . . . . . . . . Intercept . | . . . . . . . . Searches Triggered . | . . . . . . . . Construction Impeded 2 | . . . . . 1 . 1 Haulers Reinforced . | . . . . . . . . Active Scanning Responses . | . . . . . . . . Cargo Convoy Interrupts . | . . . . . . . . Stealth | -11 -10 -9 -8 -7 -6 -6 -6 --------- Run | Yrd Mat Mat Mat Fac Fac Was Fac Distress Signals 6 | . 2 . . . . . 4 Communications Jammed . | . . . . . . . . Distress Signals . | . . . . . . . . Times Spotted 110 | . 24 12 13 17 8 . 36 Peak Tracking Total 6 | . 5 3 6 5 3 . 6 Tactical Retreats 5 | . 3 . 1 . 1 . . Traps | -11 -10 -9 -8 -7 -6 -6 -6 ------- Run | Yrd Mat Mat Mat Fac Fac Was Fac Traps Triggered 13 | . 5 . 1 1 5 . 1 Indirectly . | . . . . . . . . Trap Hack Attempts . | . . . . . . . . Triggered . | . . . . . . . . Disarmed . | . . . . . . . . Reprogrammed . | . . . . . . . . Reused . | . . . . . . . . Traps Extracted . | . . . . . . . . Installed . | . . . . . . . . Triggered . | . . . . . . . . Machines | -11 -10 -9 -8 -7 -6 -6 -6 ---------- Run | Yrd Mat Mat Mat Fac Fac Was Fac Machines Disabled 8 | . 1 . 1 . 1 . 5 Max in Single Turn 5 | . 1 . 1 . 1 . 5 Garrison Access 3 | . . . 1 1 . . 1 Machines Repaired . | . . . . . . . . Machines Dismantled . | . . . . . . . . Machines Sabotaged . | . . . . . . . . Overloaded Fab Kills . | . . . . . . . . Hacking | -11 -10 -9 -8 -7 -6 -6 -6 --------- Run | Yrd Mat Mat Mat Fac Fac Was Fac Machines Accessed 35 | . 6 4 4 7 2 . 12 Terminals 26 | . 4 3 3 5 1 . 10 Fabricators . | . . . . . . . . Repair Stations 4 | . 1 . . 1 1 . 1 Recycling Units 1 | . 1 . . . . . . Scanalyzers 1 | . . 1 . . . . . Garrison Access 3 | . . . 1 1 . . 1 Total Hacks 72 | . 13 7 10 18 2 . 22 Successful 33 | . 6 4 5 6 1 . 11 Failed 39 | . 7 3 5 12 1 . 11 Catastrophic 13 | . 2 1 . 3 1 . 6 Database Lockouts . | . . . . . . . . Manual 32 | . 7 6 2 8 . . 9 Terminals 48 | . 7 5 7 13 1 . 15 Fabricators . | . . . . . . . . Repair Stations 13 | . 3 . . 3 1 . 6 Recycling Units 3 | . 3 . . . . . . Scanalyzers 2 | . . 2 . . . . . Garrison Access 6 | . . . 3 2 . . 1 Terminal Hacks 18 | . 3 2 3 4 1 . 5 Record 4 | . . . . 3 . . 1 Robot Analysis 3 | . 1 1 . . . . 1 Open DSF 1 | . . . . . 1 . . Alert Level 4 | . 1 . 2 1 . . . Unreport Threat 3 | . 1 1 1 . . . . Locate Traps 2 | . . . . . . . 2 Hauler Manifests 1 | . . . . . . . 1 Fabricator Hacks . | . . . . . . . . Repair Station Hacks 8 | . 2 . . 1 . . 5 Scan Component 5 | . 1 . . 1 . . 3 Repair 3 | . 1 . . . . . 2 Recycling Unit Hacks 1 | . 1 . . . . . . Retrieve Components 1 | . 1 . . . . . . Scanalyzer 2 | . . 2 . . . . . Insert Component 1 | . . 1 . . . . . Analyze 1 | . . 1 . . . . . Garrison Access Hacks 3 | . . . 1 1 . . 1 Seal Access 3 | . . . 1 1 . . 1 Unauthorized Hacks 1 | . . . 1 . . . . Terminals 1 | . . . 1 . . . . Assimilate 1 | . . . 1 . . . . Fabricators . | . . . . . . . . Repair Stations . | . . . . . . . . Recycling Units . | . . . . . . . . Scanalyzers . | . . . . . . . . Garrison Access . | . . . . . . . . Data Cores Recovered . | . . . . . . . . Used . | . . . . . . . . Hacking Detections 33 | . 6 4 4 6 2 . 11 Full Trace Events 1 | . . . . . . . 1 Feedback Events . | . . . . . . . . Feedback Blocked . | . . . . . . . . Robot Schematics Acquired . | . . . . . . . . Robots Built . | . . . . . . . . Authchips . | . . . . . . . . Time . | . . . . . . . . Total Robot Build Rating . | . . . . . . . . Part Schematics Acquired 1 | . . 1 . . . . . Parts Built . | . . . . . . . . Authchips . | . . . . . . . . Time . | . . . . . . . . Total Part Build Rating . | . . . . . . . . Parts Repaired 3 | . 1 . . . . . 2 Time 96 | . 26 . . . . . 70 Parts Recycled . | . . . . . . . . Recycled Matter . | . . . . . . . . Retrieved Matter . | . . . . . . . . Retrieved Components 2 | . 2 . . . . . . Parts Scanalyzed 1 | . . 1 . . . . . Part Schematics Acquired 1 | . . 1 . . . . . Parts Damaged . | . . . . . . . . Bothacking | -11 -10 -9 -8 -7 -6 -6 -6 ------------ Run | Yrd Mat Mat Mat Fac Fac Was Fac Used RIF Installer . | . . . . . . . . Robots Hacked 7 | . . 6 . . 1 . . Non-combat 6 | . . 5 . . 1 . . Combat 1 | . . 1 . . . . . Robot Hacks Applied 7 | . . 6 . . 1 . . parse_system 3 | . . 3 . . . . . no_distress 3 | . . 2 . . 1 . . check_alert 1 | . . 1 . . . . . Relay Couplers Released . | . . . . . . . . Fabnet Peak Effective % . | . . . . . . . . Robots Rewired . | . . . . . . . . Allies Hacked . | . . . . . . . . Hacks Repelled . | . . . . . . . . Allies | -11 -10 -9 -8 -7 -6 -6 -6 -------- Run | Yrd Mat Mat Mat Fac Fac Was Fac Total Allies 1 | . . . . . . 1 . Largest Group 1 | . . . . . . 1 1 Highest-Rated Group 31 | . . . . . . 31 31 Highest-Rated Ally 31 | . . . . . . 31 31 Total Orders . | . . . . . . . . Ally Attacks 8 | . . . . . . . 8 Total Damage 105 | . . . . . . . 105 Kills 1 | . . . . . . . 1 Allies Corrupted . | . . . . . . . . Allies Melted . | . . . . . . . . Intel | -11 -10 -9 -8 -7 -6 -6 -6 ------- Run | Yrd Mat Mat Mat Fac Fac Was Fac Robot Analysis Total 3 | . 1 1 . . . . 1 Derelict Logs Recovered . | . . . . . . . . Drone Launches . | . . . . . . . . Drone Recoveries . | . . . . . . . . Exploration | -11 -10 -9 -8 -7 -6 -6 -6 ------------- Run | Yrd Mat Mat Mat Fac Fac Was Fac Turns Passed 6057 | 58 867 427 483 1003 835 267 2117 Spaces Moved 3981 | 44 491 403 391 685 550 211 1206 Core 15 | 14 . 1 . . . . . Treads . | . . . . . . . . Legs 2610 | 30 476 34 . 425 550 211 884 Wheels 1117 | . 15 129 391 260 . . 322 Hover 239 | . . 239 . . . . . Flight . | . . . . . . . . Fastest Speed 50 | 50 100 52 90 90 122 122 84 Average Speed 110 | 97 122 71 90 109 122 122 120 Slowest Speed 350 | 120 190 350 90 190 192 122 330 Overloaded Moves . | . . . . . . . . Propulsion Burnouts . | . . . . . . . . Robots Hopped . | . . . . . . . . Cave-ins Triggered . | . . . . . . . . Exploration Rate (%) 36 | 3 71 44 31 11 9 84 36 Regions Visited 7 Branch Regions . Pre-discovered Areas . | . . . . . . . . Known Exits Taken . | . . . . . . . . Unknown Exits Taken 5 | 1 1 1 1 1 . . . Scrap Searched . | . . . . . . . . Spaces Dug 57 | . . . . . 29 . 28 Terrain Destroyed 169 | . 24 . 4 5 58 . 78 Melee 57 | . . . . . 29 . 28 Projectile 15 | . . . 4 5 . . 6 AOE 97 | . 24 . . . 29 . 44 Terrain Rammed . | . . . . . . . . Walls Destroyed . | . . . . . . . . Machines Disabled . | . . . . . . . . Actions | -11 -10 -9 -8 -7 -6 -6 -6 --------- Run | Yrd Mat Mat Mat Fac Fac Was Fac Total 5141 | 58 698 517 489 879 642 219 1639 Wait 542 | . 124 49 58 82 23 . 206 Move 3975 | 43 490 402 390 684 550 210 1206 Hop . | . . . . . . . . Pick Up 103 | 9 13 9 4 30 6 3 29 Fast Attach 20 | 1 4 6 4 3 . . 2 Attach 78 | 5 9 5 2 11 6 . 40 Detach 5 | . 2 . 1 . 1 . 1 Swap 20 | . 3 1 . 7 3 1 5 Drop 58 | . 8 13 7 17 4 2 7 Fire 167 | . 24 24 23 21 9 . 66 Melee 171 | . 21 8 . 24 40 1 77 Ram . | . . . . . . . . Kick . | . . . . . . . . Crush . | . . . . . . . . Escape Stasis . | . . . . . . . . Rewire 2 | . . . . . . 2 . Trap . | . . . . . . . . Miscellaneous . | . . . . . . . . Route ------- -11/Scrapyard -10/Materials (discovered 3 exits: *Mat x2 / [*Min]) -9/Materials -8/Materials -7/Factory -6/Factory -6/Waste -6/Factory History --------- Turn | Location | Event 5 | -11/Scrapyard | Discovered new exit (range 16) 59 | -11/Scrapyard | Entered Materials 225 | -10/Materials | Discovered new exit (range 6) 317 | -10/Materials | Build established: Mutant 426 | -10/Materials | Repaired EM Pulse Gun 546 | -10/Materials | Discovered new exit (range 9) 895 | -10/Materials | Discovered new exit (range 12) 926 | -10/Materials | Entered another Materials area 926 | -9/Materials | Evolved 2 slots: Propulsion x1, Utility x1 1305 | -9/Materials | Discovered new exit (range 12) 1353 | -9/Materials | Entered another Materials area 1353 | -8/Materials | Evolved 2 slots: Propulsion x1, Utility x1 1830 | -8/Materials | Discovered new exit (range 8) 1836 | -8/Materials | Entered Factory 1836 | -7/Factory | Evolved 2 slots: Propulsion x1, Utility x1 2732 | -7/Factory | Discovered new exit (range 13) 2839 | -7/Factory | Entered another Factory area 2839 | -6/Factory | Evolved 2 slots: Utility x2 2918 | -6/Factory | Build established: Scavenger-Mutant 3674 | -6/Factory | Sucked down chute 3674 | -6/Factory | Entered Waste 3674 | -6/Waste | The area was eerily silent 3675 | -6/Waste | Met a frightened Derelict 3924 | -6/Waste | Discovered new exit (range 14) 3941 | -6/Waste | Entered Factory 3941 | -6/Factory | Accompanied by 1 ally 4287 | -6/Factory | Build established: Mutant 4505 | -6/Factory | Lost 13 parts (1p6n4u2w) 4820 | -6/Factory | Build established: Scavenger-Mutant 4895 | -6/Factory | Repaired Imp. Aluminum Leg 4945 | -6/Factory | Repaired Imp. Light Armor Plating 5253 | -6/Factory | Core integrity fell below 50% 5261 | -6/Factory | System corruption reached 10% 5321 | -6/Factory | Lost 9 parts (2p2n4u1w) 5471 | -6/Factory | Core integrity fell below 20% 5951 | -6/Factory | Lost 6 parts (1p4n1w) 6058 | -6/Factory | Destroyed by Y-54 Guardian with Flak Gun Last Messages --------------- 05960_ U-05 Engineer lays Concrete. 05963_ K-01 Serf collects debris. 05994_ System corrupted: Matter fused (-8). 05996_ Acquired Imp. Hacking Suite. 06001_ The unstable cave ceiling collapses. 06004_ K-01 Serf cleans the Fabricator. 06014_ Connecting with Terminal... 06015_ System corrupted: Energy discharge (-40). 06040_ F0UIL9Z9Z >AONH X5BVPPUQGWP 06049_ Y-54 Guardian suffers critical hit (Smash). 06049_ Destroyed Lgt. Treads. 06049_ Y-54 Guardian system corrupted by crushing effect. 06056_ Y-54 Guardian suffers critical hit (Smash). 06056_ Destroyed Imp. Heat Sink. 06056_ Y-54 Guardian system corrupted by crushing effect. 06058_ Wheel destroyed. Map ----- +----------------------------------------------------+ | ?????????????????????????????????????????????????? | | ?????????????????????????????????????????????????? | | ?????????????????????????????????????????????????? | | ?????????????????????????????????????????????????? | | ?????????????????????????????????????????????????? | | ?????????????????????????????????????????????????? | | ?????????????????????????????????????????????????? | | ?????????????????????????????????????????????????? | | ?????????????????????????????????????????????????? | | ?????????????????????????????????????????????????? | | ?????????????????????????????????????????????????? | | ?????????????????????????????????????????????????? | | ?????????????????????????????????????????????????? | | ?????????????????????????????????????????????????? | | ?????????????????????????????????????????????????? | | ?????????????????????????????????????????????????? | | ?????????????????????????????????????????????????? | | ?????????????????????????????????????????????????? | | ?????????????????????????????????????????????????? | | ???????????????????????????########??????????????? | | ????????????????#######???? #??????????????? | | ????????????????# ##### ???????????????? | | ????????????????# ?????????????????? | | ????????????????# ?????????????????? | | ????????????????# """ Y ????????????????? | | ????????????????# R" @#??????????????????????? | | ????????????###### """ #??????????????????????? | | ????????????# # #??????????????????????? | | ????????????#! # #??????????????????????? | | ????????????# # #??????????????????????? | | ????????????# ]# #??????????????????????? | | ????????????# # """" #?""???????????????????? | | ????????????# + """" # ""???????????????????? | | ????????????# # """" # "????????????????????? | | ????????????#* !# """" + ?????????????????????? | | ????????????# # """" #??????????????????????? | | ????????????###### """" #?#######??????????????? | | ?????????????????# #?# #??????????????? | | ?????????????????# #?#! #??????????????? | | ?????????????????# ### ###########????? | | ?????????????????# # ## #????? | | ?????????????????# # ## """ #????? | | ?????????????????# / "# """"" #????? | | ?????????????????# # ! ## """"" #????? | | ????????????????### # ## #????? | | ????????????????#"" # ## """ #????? | | ????????????????#"" """ # ## """"" #????? | | ????????????????#"T """ # ## """"" #????? | | ????????????????#"" F" # ## #????? | | ????????????????#"" "" #+##########+########? | +----------------------------------------------------+ Best States ------------- Heat Dissipation 37 Energy Generation 21 Energy Capacity 325 Matter Stores 300 Matter Capacity 300 Sight Range 16 Robot Scan Range 16 Terrain Scan Density 10 Armor Coverage 600 Evasion (%) 55 Targeting Accuracy 11 Melee Accuracy 26 Target Analysis 5 Core Analysis 6 Kinecelleration 30 Offensive Hacking 10 Defensive Hacking 10 Item Schematics ----------------- Arm. Wheel | -9/Materials | Scanalyzed Robot Schematics ------------------ None Fabricated ------------ Nothing Alien Tech Used ----------------- None Achievements -------------- Part-time Excavator True Hacker Challenges ------------ None Game ------ Seed NodeSubatomicEdition Manual? 0 Play Time 02:09:16 Cumulative 17.2 hours Start 2024.06.29 @ 14:18:04 End 2024.06.29 @ 18:16:48 Sessions 1 Manual Loads 0 Difficulty Rogue Special Mode None Game No. 14 Rogue 14 Adventurer 0 Explorer 0 Win Type - Total 0 Types 0/0/0/0/0/0/0/0/0 Lore% 19 Gallery% 18 Achievement% 19 Wizard Run 0 Options --------- Layout 1 ASCII 0 Keyboard 0 Movement Mouse Keybinds 0 Fullscreen 1 Font 24/Smallcaps Map View 50x35 Zoom Use 0% Tactical HUD 1 Map Filters NONE Filters NONE Steam 1 RUN: 2358c62f-c6d3-45f4-afa8-d74e8d9a8a86